[Event "*** Titled Tuesday Blitz"]
[Site "Chess.com"]
[Date "2020.11.03"]
[Round "2"]
[White "HrvojeZagreb"]
[Black "Shuvalov"]
[Result "0-1"]
[WhiteElo "2233"]
[BlackElo "2441"]
[TimeControl "180+1"]
[EndTime "10:18:47 PST"]
[Termination "Shuvalov won by resignation"]

1. d4 {[%clk 0:03:00.9]} 1... d5 {[%clk 0:02:51.2]} 2. Bf4 {[%clk 0:03:00.9]}
2... c5 {[%clk 0:02:50.6]} 3. e3 {[%clk 0:03:00.8]} 3... Nc6 {[%clk 0:02:50.6]}
4. Nc3 {[%clk 0:03:00.9]} 4... a6 {[%clk 0:02:45.8]} 5. dxc5 {[%clk 0:02:48.8]}
5... e5 {[%clk 0:02:36.6]} 6. Bg3 {[%clk 0:02:48]} 6... Be6 {[%clk 0:02:36.1]}
7. Na4 {[%clk 0:02:41.3]} 7... Bxc5 {[%clk 0:02:33.2]} 8. Nxc5 {[%clk
0:02:40.8]} 8... Qa5+ {[%clk 0:02:32.8]} 9. c3 {[%clk 0:02:39.3]} 9... Qxc5
{[%clk 0:02:32.9]} 10. Nf3 {[%clk 0:02:39.7]} 10... f6 {[%clk 0:02:31.8]} 11.
Be2 {[%clk 0:02:08.2]} 11... Nge7 {[%clk 0:02:29.5]} 12. O-O {[%clk 0:02:03.4]}
12... O-O {[%clk 0:02:25.1]} 13. Qb3 {[%clk 0:01:51.9]} 13... Na5 {[%clk
0:01:55.3]} 14. Qc2 {[%clk 0:01:46.7]} 14... Nc4 {[%clk 0:01:45.3]} 15. Rfd1
{[%clk 0:01:45.3]} 15... Rfd8 {[%clk 0:01:44.3]} 16. Ne1 {[%clk 0:01:31]} 16...
Rac8 {[%clk 0:01:40.3]} 17. Nd3 {[%clk 0:01:22.2]} 17... Qb6 {[%clk 0:01:38.4]}
18. a4 {[%clk 0:01:14.4]} 18... a5 {[%clk 0:01:33.5]} 19. Rac1 {[%clk
0:00:50.5]} 19... Nf5 {[%clk 0:01:15.8]} 20. b3 {[%clk 0:00:44]} 20... Ncd6
{[%clk 0:01:13.6]} 21. Nxe5 {[%clk 0:00:43.4]} 21... fxe5 {[%clk 0:01:09.1]} 22.
Bxe5 {[%clk 0:00:44.3]} 22... Nxe3 {[%clk 0:00:59.4]} 23. Bd4 {[%clk 0:00:44]}
23... Qxd4 {[%clk 0:00:48.4]} 24. Rxd4 {[%clk 0:00:24.4]} 24... Nxc2 {[%clk
0:00:48.3]} 25. Rxc2 {[%clk 0:00:25.3]} 25... Nf5 {[%clk 0:00:41.8]} 26. Rf4
{[%clk 0:00:25.3]} 26... d4 {[%clk 0:00:38.1]} 27. Bg4 {[%clk 0:00:23.9]} 27...
d3 {[%clk 0:00:29.1]} 28. Rd2 {[%clk 0:00:20.7]} 28... Rxc3 {[%clk 0:00:24.6]}
29. h3 {[%clk 0:00:20.5]} 29... g6 {[%clk 0:00:23.7]} 30. b4 {[%clk 0:00:18.5]}
30... Rc2 {[%clk 0:00:19.6]} 31. Rd1 {[%clk 0:00:17.3]} 31... d2 {[%clk
0:00:19.4]} 32. bxa5 {[%clk 0:00:16.5]} 32... Rc1 {[%clk 0:00:19.2]} 33. Rb4
{[%clk 0:00:15.2]} 33... Rd4 {[%clk 0:00:15.5]} 34. Rxd4 {[%clk 0:00:14.3]}
34... Nxd4 {[%clk 0:00:16.4]} 35. Kf1 {[%clk 0:00:14]} 35... Bxg4 {[%clk
0:00:15.6]} 0-1

[Event "*** Titled Tuesday Blitz"]
[Site "Chess.com"]
[Date "2020.11.03"]
[Round "2"]
[White "davigator"]
[Black "GMG"]
[Result "0-1"]
[WhiteElo "2374"]
[BlackElo "2715"]
[TimeControl "180+1"]
[EndTime "10:18:50 PST"]
[Termination "GMG won by resignation"]

1. e4 {[%clk 0:03:00.9]} 1... c5 {[%clk 0:03:00]} 2. Nf3 {[%clk 0:02:59.8]} 2...
d6 {[%clk 0:03:00.3]} 3. d4 {[%clk 0:02:59.9]} 3... cxd4 {[%clk 0:03:01.2]} 4.
Nxd4 {[%clk 0:03:00.1]} 4... Nf6 {[%clk 0:03:01.9]} 5. Nc3 {[%clk 0:03:00.4]}
5... a6 {[%clk 0:03:02.5]} 6. Bg5 {[%clk 0:02:59.9]} 6... Nbd7 {[%clk
0:03:02.3]} 7. f3 {[%clk 0:02:59.7]} 7... e6 {[%clk 0:03:00.9]} 8. Qd2 {[%clk
0:03:00]} 8... Qc7 {[%clk 0:02:59.2]} 9. O-O-O {[%clk 0:03:00.3]} 9... b5 {[%clk
0:02:58.9]} 10. h4 {[%clk 0:03:00.1]} 10... Bb7 {[%clk 0:02:57.2]} 11. Bxb5
{[%clk 0:02:59.7]} 11... axb5 {[%clk 0:02:56.9]} 12. Ndxb5 {[%clk 0:03:00.4]}
12... Qb6 {[%clk 0:02:54.4]} 13. Nxd6+ {[%clk 0:03:01.3]} 13... Bxd6 {[%clk
0:02:54.4]} 14. Qxd6 {[%clk 0:03:02.2]} 14... Qxd6 {[%clk 0:02:55]} 15. Rxd6
{[%clk 0:03:02.4]} 15... h6 {[%clk 0:02:46.9]} 16. Bf4 {[%clk 0:03:01.2]} 16...
e5 {[%clk 0:02:31.2]} 17. Be3 {[%clk 0:03:00.7]} 17... Ke7 {[%clk 0:02:30.2]}
18. Rhd1 {[%clk 0:03:00.4]} 18... Ra6 {[%clk 0:02:29.8]} 19. Rxa6 {[%clk
0:02:58.7]} 19... Bxa6 {[%clk 0:02:30.7]} 20. b3 {[%clk 0:02:58.7]} 20... Rc8
{[%clk 0:02:29.9]} 21. Kb2 {[%clk 0:02:58.7]} 21... Rc6 {[%clk 0:02:15.7]} 22.
Rd2 {[%clk 0:02:56.5]} 22... Rd6 {[%clk 0:02:14.6]} 23. Nd5+ {[%clk 0:02:52.6]}
23... Nxd5 {[%clk 0:02:14.1]} 24. exd5 {[%clk 0:02:53.4]} 24... f5 {[%clk
0:01:32.2]} 25. c4 {[%clk 0:02:52.2]} 25... f4 {[%clk 0:01:22.9]} 26. Ba7 {[%clk
0:02:47.8]} 26... Bb7 {[%clk 0:01:19.9]} 27. a4 {[%clk 0:02:44.7]} 27... g5
{[%clk 0:01:13]} 28. hxg5 {[%clk 0:02:43.8]} 28... hxg5 {[%clk 0:01:13.9]} 29.
Bf2 {[%clk 0:02:35]} 29... Kf6 {[%clk 0:01:08.3]} 30. Kc3 {[%clk 0:02:33.2]}
30... Kf5 {[%clk 0:01:08]} 31. Kb4 {[%clk 0:02:26.6]} 31... g4 {[%clk
0:01:05.9]} 32. Bc5 {[%clk 0:02:25.3]} 32... Rg6 {[%clk 0:00:59.2]} 33. Bf2
{[%clk 0:02:20.3]} 33... Rh6 {[%clk 0:00:25.5]} 34. c5 {[%clk 0:02:17.4]} 34...
g3 {[%clk 0:00:22.2]} 35. Bg1 {[%clk 0:02:05.7]} 35... Nf6 {[%clk 0:00:12.3]}
36. c6 {[%clk 0:02:05.3]} 36... Nxd5+ {[%clk 0:00:11.7]} 37. Rxd5 {[%clk
0:02:04.2]} 37... Bxc6 {[%clk 0:00:12.6]} 38. Rd2 {[%clk 0:01:57.1]} 38... e4
{[%clk 0:00:09.1]} 39. fxe4+ {[%clk 0:01:54.8]} 39... Bxe4 {[%clk 0:00:10]} 40.
a5 {[%clk 0:01:50.3]} 40... Rh2 {[%clk 0:00:09.8]} 41. Kc5 {[%clk 0:01:41.2]}
41... Rxg2 {[%clk 0:00:08.2]} 42. Rxg2 {[%clk 0:01:37.8]} 42... Bxg2 {[%clk
0:00:09.1]} 43. Kd4 {[%clk 0:01:37.9]} 43... Kg4 {[%clk 0:00:05]} 44. b4 {[%clk
0:01:37]} 44... Kf3 {[%clk 0:00:04.5]} 45. Kd3 {[%clk 0:01:33.6]} 45... Bf1+
{[%clk 0:00:02.4]} 46. Kd2 {[%clk 0:01:33.4]} 46... Kg2 {[%clk 0:00:02.8]} 47.
Bd4 {[%clk 0:01:32.8]} 47... f3 {[%clk 0:00:03]} 48. Ke3 {[%clk 0:00:49.7]}
48... Ba6 {[%clk 0:00:03.9]} 49. Kf4 {[%clk 0:00:48.8]} 49... f2 {[%clk
0:00:04.4]} 0-1

[Event "*** Titled Tuesday Blitz"]
[Site "Chess.com"]
[Date "2020.11.03"]
[Round "2"]
[White "AlexOstrovskiy"]
[Black "sokidze"]
[Result "0-1"]
[WhiteElo "2790"]
[BlackElo "2538"]
[TimeControl "180+1"]
[EndTime "10:18:52 PST"]
[Termination "sokidze won by resignation"]

1. d4 {[%clk 0:03:00.9]} 1... Nf6 {[%clk 0:02:59.4]} 2. Bf4 {[%clk 0:03:00.6]}
2... e6 {[%clk 0:02:59.1]} 3. e3 {[%clk 0:03:00.4]} 3... d5 {[%clk 0:02:59.3]}
4. Nd2 {[%clk 0:03:00.4]} 4... Bd6 {[%clk 0:02:59.6]} 5. Bg3 {[%clk 0:03:00.4]}
5... O-O {[%clk 0:02:59.6]} 6. Bd3 {[%clk 0:02:58.5]} 6... c5 {[%clk 0:02:59.6]}
7. c3 {[%clk 0:02:58.8]} 7... b6 {[%clk 0:02:56.1]} 8. e4 {[%clk 0:02:48]} 8...
Be7 {[%clk 0:01:53.4]} 9. e5 {[%clk 0:02:45.3]} 9... Nfd7 {[%clk 0:01:52.4]} 10.
Qe2 {[%clk 0:02:16.6]} 10... a5 {[%clk 0:01:50.2]} 11. a4 {[%clk 0:02:17.2]}
11... Ba6 {[%clk 0:01:45]} 12. Bb5 {[%clk 0:02:17]} 12... Qc8 {[%clk 0:01:39.1]}
13. Ngf3 {[%clk 0:02:15.9]} 13... Nc6 {[%clk 0:01:37.5]} 14. O-O {[%clk
0:02:12.2]} 14... c4 {[%clk 0:01:29.2]} 15. Bxc6 {[%clk 0:01:59.9]} 15... Qxc6
{[%clk 0:01:29]} 16. h4 {[%clk 0:02:00.8]} 16... h6 {[%clk 0:01:24.1]} 17. Bf4
{[%clk 0:01:58.8]} 17... Rfb8 {[%clk 0:01:15]} 18. Ra2 {[%clk 0:01:52.6]} 18...
b5 {[%clk 0:01:14.1]} 19. axb5 {[%clk 0:01:53.5]} 19... Bxb5 {[%clk 0:01:15]}
20. Rfa1 {[%clk 0:01:53.9]} 20... a4 {[%clk 0:00:57.2]} 21. Nf1 {[%clk
0:01:45.3]} 21... a3 {[%clk 0:00:54.9]} 22. bxa3 {[%clk 0:01:45.1]} 22... Ba4
{[%clk 0:00:55]} 23. g4 {[%clk 0:01:27.5]} 23... Nf8 {[%clk 0:00:49.5]} 24. Qe3
{[%clk 0:01:20.6]} 24... Ng6 {[%clk 0:00:46.9]} 25. Bg3 {[%clk 0:01:18.6]} 25...
Bb3 {[%clk 0:00:40.9]} 26. Re2 {[%clk 0:01:18.7]} 26... Bxa3 {[%clk 0:00:34.1]}
27. h5 {[%clk 0:01:18.9]} 27... Nf8 {[%clk 0:00:30.8]} 28. g5 {[%clk 0:01:11.2]}
28... hxg5 {[%clk 0:00:29.4]} 29. Qxg5 {[%clk 0:01:10.9]} 29... Nh7 {[%clk
0:00:25.1]} 30. Qg4 {[%clk 0:01:07.9]} 30... Be7 {[%clk 0:00:22]} 31. Rxa8
{[%clk 0:01:06.6]} 31... Rxa8 {[%clk 0:00:22.9]} 32. h6 {[%clk 0:01:03.7]} 32...
g6 {[%clk 0:00:22.8]} 33. Re1 {[%clk 0:00:46.6]} 33... Bc2 {[%clk 0:00:22.3]}
34. Ne3 {[%clk 0:00:44.8]} 34... Bf5 {[%clk 0:00:22.2]} 35. Nxf5 {[%clk
0:00:42.3]} 35... exf5 {[%clk 0:00:23.1]} 36. Qf4 {[%clk 0:00:42.7]} 36... Qe6
{[%clk 0:00:23.7]} 37. Rb1 {[%clk 0:00:39.8]} 37... g5 {[%clk 0:00:23]} 38. Qd2
{[%clk 0:00:36.7]} 38... f4 {[%clk 0:00:23.1]} 39. Bh2 {[%clk 0:00:32.8]} 39...
Qg4+ {[%clk 0:00:23.2]} 40. Kf1 {[%clk 0:00:19.7]} 40... Qxf3 {[%clk 0:00:23.5]}
41. Qb2 {[%clk 0:00:17.7]} 41... Qh3+ {[%clk 0:00:21.8]} 42. Kg1 {[%clk
0:00:17.6]} 42... f3 {[%clk 0:00:22]} 0-1

[Event "*** Titled Tuesday Blitz"]
[Site "Chess.com"]
[Date "2020.11.03"]
[Round "2"]
[White "Chess2019Player"]
[Black "XDPS"]
[Result "0-1"]
[WhiteElo "2261"]
[BlackElo "2663"]
[TimeControl "180+1"]
[EndTime "10:18:55 PST"]
[Termination "XDPS won on time"]

1. Nf3 {[%clk 0:03:00.9]} 1... d5 {[%clk 0:02:59.7]} 2. c4 {[%clk 0:02:58.5]}
2... c6 {[%clk 0:02:59.8]} 3. cxd5 {[%clk 0:02:52.7]} 3... cxd5 {[%clk
0:02:58.9]} 4. d4 {[%clk 0:02:50.8]} 4... Nc6 {[%clk 0:02:58.1]} 5. Nc3 {[%clk
0:02:50.3]} 5... Nf6 {[%clk 0:02:58.1]} 6. Bf4 {[%clk 0:02:49.9]} 6... Ne4
{[%clk 0:02:58.1]} 7. e3 {[%clk 0:02:41.4]} 7... Nxc3 {[%clk 0:02:57.8]} 8. bxc3
{[%clk 0:02:42.3]} 8... e6 {[%clk 0:02:58.4]} 9. Bd3 {[%clk 0:02:39.8]} 9... Bd6
{[%clk 0:02:58.6]} 10. Bxd6 {[%clk 0:02:38.3]} 10... Qxd6 {[%clk 0:02:59.5]} 11.
O-O {[%clk 0:02:36.8]} 11... O-O {[%clk 0:02:56.7]} 12. Qb1 {[%clk 0:02:04.8]}
12... h6 {[%clk 0:02:52.5]} 13. Rc1 {[%clk 0:02:01.2]} 13... b6 {[%clk 0:02:52]}
14. c4 {[%clk 0:01:59.1]} 14... dxc4 {[%clk 0:02:52.2]} 15. Bxc4 {[%clk
0:01:53.6]} 15... Bb7 {[%clk 0:02:50.9]} 16. Bb3 {[%clk 0:01:39.1]} 16... Rac8
{[%clk 0:02:48.6]} 17. Qd3 {[%clk 0:01:38.4]} 17... Nb4 {[%clk 0:02:42.4]} 18.
Qe2 {[%clk 0:01:32.6]} 18... Ba6 {[%clk 0:02:36]} 19. Qd1 {[%clk 0:01:32.6]}
19... Nd3 {[%clk 0:02:31.6]} 20. Rxc8 {[%clk 0:01:27.5]} 20... Rxc8 {[%clk
0:02:32.5]} 21. Rb1 {[%clk 0:01:11.9]} 21... Qa3 {[%clk 0:02:28.8]} 22. Ne5
{[%clk 0:00:33.2]} 22... Nxe5 {[%clk 0:02:06]} 23. dxe5 {[%clk 0:00:34.1]} 23...
Qc5 {[%clk 0:01:04.9]} 24. Qd6 {[%clk 0:00:33.2]} 24... Be2 {[%clk 0:00:48.5]}
25. Qxc5 {[%clk 0:00:20.1]} 25... Rxc5 {[%clk 0:00:48.2]} 26. f4 {[%clk
0:00:19.7]} 26... Kf8 {[%clk 0:00:44.5]} 27. Kf2 {[%clk 0:00:19.4]} 27... Bh5
{[%clk 0:00:39.1]} 28. Rb2 {[%clk 0:00:18.4]} 28... Ke7 {[%clk 0:00:37.5]} 29.
Rd2 {[%clk 0:00:18.7]} 29... Bg6 {[%clk 0:00:34]} 30. Kf3 {[%clk 0:00:17.4]}
30... Rc3 {[%clk 0:00:26.2]} 31. g4 {[%clk 0:00:14.3]} 31... Bd3 {[%clk
0:00:24.5]} 32. Kf2 {[%clk 0:00:08.1]} 32... b5 {[%clk 0:00:21.8]} 33. Kf3
{[%clk 0:00:07.3]} 33... a5 {[%clk 0:00:21.8]} 34. Bd1 {[%clk 0:00:06.5]} 34...
Bc4 {[%clk 0:00:18.4]} 0-1

[Event "*** Titled Tuesday Blitz"]
[Site "Chess.com"]
[Date "2020.11.03"]
[Round "2"]
[White "ShcufNaiRolf"]
[Black "Sven_Tica"]
[Result "0-1"]
[WhiteElo "2340"]
[BlackElo "2689"]
[TimeControl "180+1"]
[EndTime "10:18:56 PST"]
[Termination "Sven_Tica won on time"]

1. e4 {[%clk 0:03:00.9]} 1... c5 {[%clk 0:03:00.2]} 2. Nf3 {[%clk 0:02:58]} 2...
Nf6 {[%clk 0:03:00.8]} 3. Nc3 {[%clk 0:02:53.9]} 3... d5 {[%clk 0:03:00.7]} 4.
Bb5+ {[%clk 0:02:37.6]} 4... Bd7 {[%clk 0:02:59.6]} 5. e5 {[%clk 0:02:35.2]}
5... Ne4 {[%clk 0:02:56.3]} 6. e6 {[%clk 0:02:27.3]} 6... fxe6 {[%clk
0:02:57.2]} 7. Bxd7+ {[%clk 0:02:20.3]} 7... Nxd7 {[%clk 0:02:56.1]} 8. Nxe4
{[%clk 0:02:17.1]} 8... dxe4 {[%clk 0:02:57]} 9. Ng5 {[%clk 0:02:17.5]} 9... Nf6
{[%clk 0:02:56.9]} 10. Nxe6 {[%clk 0:01:57.3]} 10... Qd6 {[%clk 0:02:55.9]} 11.
Nxf8 {[%clk 0:01:46.4]} 11... Rxf8 {[%clk 0:02:56.8]} 12. O-O {[%clk 0:01:46.5]}
12... Kf7 {[%clk 0:02:57.1]} 13. b3 {[%clk 0:01:42]} 13... Kg8 {[%clk
0:02:52.7]} 14. Bb2 {[%clk 0:01:41.9]} 14... Rad8 {[%clk 0:02:52.8]} 15. Bc3
{[%clk 0:01:34.5]} 15... Nd5 {[%clk 0:02:46.6]} 16. Qg4 {[%clk 0:01:29.2]} 16...
Nxc3 {[%clk 0:02:36.9]} 17. dxc3 {[%clk 0:01:30.1]} 17... Qe5 {[%clk 0:02:32.5]}
18. Rae1 {[%clk 0:01:24]} 18... Rf4 {[%clk 0:02:28.4]} 19. Qg3 {[%clk
0:01:23.8]} 19... Rd2 {[%clk 0:02:28.5]} 20. Rc1 {[%clk 0:01:11.5]} 20... h6
{[%clk 0:02:20.2]} 21. Qe3 {[%clk 0:01:10.8]} 21... Qd6 {[%clk 0:02:02.3]} 22.
g3 {[%clk 0:01:02.3]} 22... Rf3 {[%clk 0:01:56.3]} 23. Qxe4 {[%clk 0:01:01.4]}
23... Rxc3 {[%clk 0:01:53]} 24. Rfe1 {[%clk 0:00:45.4]} 24... Qf6 {[%clk
0:01:43.5]} 25. Re2 {[%clk 0:00:36.8]} 25... Rxe2 {[%clk 0:01:42]} 26. Qxe2
{[%clk 0:00:37.7]} 26... b6 {[%clk 0:01:40]} 27. Rd1 {[%clk 0:00:30.9]} 27... a5
{[%clk 0:01:35.7]} 28. a4 {[%clk 0:00:30.6]} 28... Kf7 {[%clk 0:01:28.5]} 29.
Qe4 {[%clk 0:00:29.1]} 29... Rf3 {[%clk 0:01:23]} 30. Qd5+ {[%clk 0:00:27]}
30... e6 {[%clk 0:01:18.3]} 31. Qb7+ {[%clk 0:00:20.5]} 31... Kg8 {[%clk
0:01:04.4]} 32. Qa8+ {[%clk 0:00:20.6]} 32... Kh7 {[%clk 0:01:01.4]} 33. Qe4+
{[%clk 0:00:20.6]} 33... Rf5 {[%clk 0:01:01.6]} 34. g4 {[%clk 0:00:18.8]} 34...
Qg6 {[%clk 0:01:00.9]} 35. h3 {[%clk 0:00:13.8]} 35... Rd5 {[%clk 0:01:00.2]}
36. Qxg6+ {[%clk 0:00:13.5]} 36... Kxg6 {[%clk 0:01:01.1]} 37. Re1 {[%clk
0:00:09.2]} 37... Kf6 {[%clk 0:01:00.1]} 38. Re2 {[%clk 0:00:09.7]} 38... g5
{[%clk 0:00:59.4]} 39. Kg2 {[%clk 0:00:10]} 39... Rd4 {[%clk 0:00:59.3]} 40. Kf3
{[%clk 0:00:09.7]} 40... e5 {[%clk 0:00:58.1]} 41. Ke3 {[%clk 0:00:09.4]} 41...
Ke6 {[%clk 0:00:57.8]} 42. Rd2 {[%clk 0:00:09.1]} 42... Kd5 {[%clk 0:00:56.2]}
43. Rd3 {[%clk 0:00:08.8]} 43... c4 {[%clk 0:00:52.7]} 44. Rc3 {[%clk
0:00:01.1]} 44... Rf4 {[%clk 0:00:44.8]} 0-1

[Event "*** Titled Tuesday Blitz"]
[Site "Chess.com"]
[Date "2020.11.03"]
[Round "2"]
[White "Kezin_Roman"]
[Black "kingofthenil"]
[Result "1-0"]
[WhiteElo "2725"]
[BlackElo "2485"]
[TimeControl "180+1"]
[EndTime "10:18:58 PST"]
[Termination "Kezin_Roman won on time"]

1. d4 {[%clk 0:02:59.4]} 1... Nf6 {[%clk 0:03:00.1]} 2. c4 {[%clk 0:02:59.4]}
2... c5 {[%clk 0:03:00.4]} 3. d5 {[%clk 0:02:59.4]} 3... e6 {[%clk 0:03:01.3]}
4. Nc3 {[%clk 0:02:59.4]} 4... exd5 {[%clk 0:03:02.2]} 5. cxd5 {[%clk
0:03:00.3]} 5... g6 {[%clk 0:03:03.1]} 6. e4 {[%clk 0:02:59.7]} 6... d6 {[%clk
0:03:03.3]} 7. Nf3 {[%clk 0:03:00.3]} 7... Bg7 {[%clk 0:03:03.8]} 8. h3 {[%clk
0:03:00.6]} 8... a6 {[%clk 0:03:02.8]} 9. a4 {[%clk 0:03:00.1]} 9... Nbd7 {[%clk
0:03:02.7]} 10. Bd3 {[%clk 0:02:57.3]} 10... Nh5 {[%clk 0:03:02.5]} 11. Be2
{[%clk 0:02:52.1]} 11... O-O {[%clk 0:02:59.5]} 12. O-O {[%clk 0:02:52.1]} 12...
Re8 {[%clk 0:02:59.9]} 13. Re1 {[%clk 0:02:49.9]} 13... Nhf6 {[%clk 0:02:59.6]}
14. Bf1 {[%clk 0:02:48.6]} 14... Rb8 {[%clk 0:02:57.8]} 15. Bf4 {[%clk
0:02:47.9]} 15... Qc7 {[%clk 0:02:56.5]} 16. e5 {[%clk 0:02:47.8]} 16... dxe5
{[%clk 0:00:46.4]} 17. d6 {[%clk 0:02:48.7]} 17... Qb6 {[%clk 0:00:42.9]} 18.
Nxe5 {[%clk 0:02:48.9]} 18... Qxb2 {[%clk 0:00:36.4]} 19. Rc1 {[%clk 0:02:48.5]}
19... Nxe5 {[%clk 0:00:29.7]} 20. Bxe5 {[%clk 0:02:49.4]} 20... Bd7 {[%clk
0:00:29.5]} 21. Rb1 {[%clk 0:02:37.4]} 21... Qa3 {[%clk 0:00:12.4]} 22. Rb3
{[%clk 0:02:36.9]} 22... Bxa4 {[%clk 0:00:12.9]} 23. Rxa3 {[%clk 0:02:37.2]}
23... Bxd1 {[%clk 0:00:13.8]} 24. Nxd1 {[%clk 0:02:38]} 24... Nd7 {[%clk
0:00:10.4]} 25. Bc3 {[%clk 0:02:36.2]} 25... Bxc3 {[%clk 0:00:07.3]} 26. Rxe8+
{[%clk 0:02:35.1]} 26... Rxe8 {[%clk 0:00:08.2]} 27. Nxc3 {[%clk 0:02:36]} 27...
Re6 {[%clk 0:00:08.4]} 28. Ra1 {[%clk 0:02:02.3]} 28... Rxd6 {[%clk 0:00:08.6]}
29. g3 {[%clk 0:02:02.7]} 29... b5 {[%clk 0:00:08.2]} 30. Ne4 {[%clk 0:02:02.6]}
30... Re6 {[%clk 0:00:07.1]} 31. Bg2 {[%clk 0:02:02.4]} 31... c4 {[%clk
0:00:06.4]} 32. Rd1 {[%clk 0:02:02]} 32... Nf6 {[%clk 0:00:05.6]} 33. Nc5 {[%clk
0:02:01.9]} 33... Rb6 {[%clk 0:00:04.2]} 34. Rc1 {[%clk 0:01:50.7]} 34... Kg7
{[%clk 0:00:02.6]} 35. f4 {[%clk 0:01:47]} 35... a5 {[%clk 0:00:02.9]} 36. Kf2
{[%clk 0:01:47.2]} 36... a4 {[%clk 0:00:03.4]} 37. Ke3 {[%clk 0:01:47]} 37... a3
{[%clk 0:00:04]} 38. Kd4 {[%clk 0:01:46.7]} 38... Rb8 {[%clk 0:00:01.3]} 39. Kc3
{[%clk 0:01:45.9]} 39... h5 {[%clk 0:00:01.5]} 40. Kb4 {[%clk 0:01:45.4]} 40...
Rd8 {[%clk 0:00:01.4]} 41. Rc2 {[%clk 0:01:42.2]} 41... Rd1 {[%clk 0:00:01.5]}
42. Kxa3 {[%clk 0:01:42.1]} 42... Rb1 {[%clk 0:00:01.8]} 43. Rb2 {[%clk
0:01:35.7]} 43... Rxb2 {[%clk 0:00:01.4]} 44. Kxb2 {[%clk 0:01:36.6]} 44... b4
{[%clk 0:00:02.3]} 45. Bf1 {[%clk 0:01:35.8]} 45... c3+ {[%clk 0:00:01.8]} 46.
Kb3 {[%clk 0:01:36.7]} 46... h4 {[%clk 0:00:02]} 47. g4 {[%clk 0:01:35.7]} 47...
Ne8 {[%clk 0:00:02.7]} 48. Kxb4 {[%clk 0:01:32.8]} 48... c2 {[%clk 0:00:02.9]}
49. Nd3 {[%clk 0:01:33.5]} 49... Nd6 {[%clk 0:00:03.1]} 50. Kc3 {[%clk 0:01:33]}
50... f5 {[%clk 0:00:02.4]} 51. g5 {[%clk 0:01:31.6]} 51... Kf7 {[%clk
0:00:02.3]} 52. Kxc2 {[%clk 0:01:31.4]} 52... Ke6 {[%clk 0:00:03.2]} 53. Kd2
{[%clk 0:01:31.7]} 53... Kd5 {[%clk 0:00:03.6]} 54. Ke3 {[%clk 0:01:32.3]} 54...
Nc4+ {[%clk 0:00:03.9]} 55. Kf2 {[%clk 0:01:32.1]} 55... Kd4 {[%clk 0:00:04.8]}
56. Ne5 {[%clk 0:01:29]} 56... Nxe5 {[%clk 0:00:01.5]} 57. fxe5 {[%clk
0:01:29.9]} 57... Kxe5 {[%clk 0:00:02.4]} 58. Kf3 {[%clk 0:01:30.2]} 58... f4
{[%clk 0:00:02.5]} 59. Bd3 {[%clk 0:01:30.9]} 1-0

[Event "*** Titled Tuesday Blitz"]
[Site "Chess.com"]
[Date "2020.11.03"]
[Round "2"]
[White "Flopezin"]
[Black "Baby_Legs"]
[Result "0-1"]
[WhiteElo "2362"]
[BlackElo "2679"]
[TimeControl "180+1"]
[EndTime "10:18:59 PST"]
[Termination "Baby_Legs won by resignation"]

1. c4 {[%clk 0:03:00.9]} 1... e6 {[%clk 0:02:59.8]} 2. Nf3 {[%clk 0:02:58.1]}
2... d5 {[%clk 0:02:59.3]} 3. e3 {[%clk 0:02:58.7]} 3... Nf6 {[%clk 0:02:58.9]}
4. b3 {[%clk 0:02:59.2]} 4... Bd6 {[%clk 0:02:58.6]} 5. Bb2 {[%clk 0:02:57.6]}
5... b6 {[%clk 0:02:56.8]} 6. g3 {[%clk 0:02:57.6]} 6... O-O {[%clk 0:02:45.9]}
7. Bg2 {[%clk 0:02:57.7]} 7... Ba6 {[%clk 0:02:44.3]} 8. d3 {[%clk 0:02:51.1]}
8... Nbd7 {[%clk 0:02:43.9]} 9. Nc3 {[%clk 0:02:37.7]} 9... Qe7 {[%clk
0:02:42.7]} 10. O-O {[%clk 0:02:35.2]} 10... c6 {[%clk 0:02:36.4]} 11. Re1
{[%clk 0:02:25.9]} 11... Rfd8 {[%clk 0:02:33.8]} 12. Qc2 {[%clk 0:02:25.1]}
12... Rac8 {[%clk 0:02:33]} 13. Rad1 {[%clk 0:02:25.5]} 13... Bb7 {[%clk
0:02:27.8]} 14. d4 {[%clk 0:02:20]} 14... a6 {[%clk 0:02:16.6]} 15. e4 {[%clk
0:02:11.6]} 15... dxe4 {[%clk 0:02:10.6]} 16. Nxe4 {[%clk 0:02:12.5]} 16... Nxe4
{[%clk 0:02:10.4]} 17. Qxe4 {[%clk 0:02:13.4]} 17... Nf6 {[%clk 0:02:09.9]} 18.
Qe2 {[%clk 0:02:11.4]} 18... c5 {[%clk 0:02:10.1]} 19. dxc5 {[%clk 0:02:09.8]}
19... Bxc5 {[%clk 0:02:06.8]} 20. Ne5 {[%clk 0:02:03.3]} 20... Bxg2 {[%clk
0:02:05.7]} 21. Kxg2 {[%clk 0:02:04.2]} 21... Qb7+ {[%clk 0:01:53.5]} 22. Qf3
{[%clk 0:02:04.3]} 22... Qxf3+ {[%clk 0:01:53.3]} 23. Kxf3 {[%clk 0:02:05.2]}
23... Kf8 {[%clk 0:01:48.3]} 24. Nd3 {[%clk 0:01:46.8]} 24... Nd7 {[%clk
0:01:38.9]} 25. Nxc5 {[%clk 0:01:42.1]} 25... Nxc5 {[%clk 0:01:39.1]} 26. Ba3
{[%clk 0:01:42.2]} 26... Ke8 {[%clk 0:01:34]} 27. Bxc5 {[%clk 0:01:40.5]} 27...
Rxc5 {[%clk 0:01:19.5]} 28. Rxd8+ {[%clk 0:01:40]} 28... Kxd8 {[%clk 0:01:20.4]}
29. Ke4 {[%clk 0:01:38.3]} 29... f6 {[%clk 0:01:19]} 30. Kd4 {[%clk 0:01:31.1]}
30... Kd7 {[%clk 0:01:15.7]} 31. f4 {[%clk 0:01:25.7]} 31... Kd6 {[%clk
0:01:11.6]} 32. Rc1 {[%clk 0:01:14.3]} 32... Ra5 {[%clk 0:01:02.5]} 33. Rc2
{[%clk 0:01:13.2]} 33... g5 {[%clk 0:00:59.9]} 34. fxg5 {[%clk 0:01:11.1]} 34...
Rxg5 {[%clk 0:00:59.2]} 35. Rf2 {[%clk 0:01:02.3]} 35... f5 {[%clk 0:00:57.1]}
36. Re2 {[%clk 0:00:52.4]} 36... h5 {[%clk 0:00:56.4]} 37. b4 {[%clk 0:00:50.7]}
37... Rg4+ {[%clk 0:00:56.5]} 38. Kd3 {[%clk 0:00:50.7]} 38... h4 {[%clk
0:00:56.6]} 39. gxh4 {[%clk 0:00:48.6]} 39... Rxh4 {[%clk 0:00:57.5]} 40. a4
{[%clk 0:00:46.4]} 40... Rh3+ {[%clk 0:00:56.8]} 41. Kc2 {[%clk 0:00:39.7]}
41... e5 {[%clk 0:00:55.5]} 42. Rd2+ {[%clk 0:00:35.7]} 42... Kc7 {[%clk
0:00:54]} 43. c5 {[%clk 0:00:31.7]} 43... bxc5 {[%clk 0:00:53.9]} 44. bxc5
{[%clk 0:00:32.6]} 44... Kc6 {[%clk 0:00:53.8]} 45. Rd6+ {[%clk 0:00:33.2]}
45... Kxc5 {[%clk 0:00:54.2]} 46. Rxa6 {[%clk 0:00:33.8]} 46... Rxh2+ {[%clk
0:00:54.7]} 47. Kd3 {[%clk 0:00:33.9]} 47... Rh3+ {[%clk 0:00:55.6]} 48. Ke2
{[%clk 0:00:33.9]} 48... Ra3 {[%clk 0:00:52.6]} 49. Rf6 {[%clk 0:00:32.9]} 49...
f4 {[%clk 0:00:52.2]} 50. Re6 {[%clk 0:00:29.4]} 50... Kd5 {[%clk 0:00:52.4]}
51. Ra6 {[%clk 0:00:29.2]} 51... Ke4 {[%clk 0:00:52.6]} 52. a5 {[%clk 0:00:28]}
52... Ra2+ {[%clk 0:00:53]} 53. Kd1 {[%clk 0:00:28.6]} 53... Ke3 {[%clk
0:00:53.2]} 54. Ra8 {[%clk 0:00:29.2]} 54... e4 {[%clk 0:00:53.3]} 55. a6 {[%clk
0:00:29.1]} 55... f3 {[%clk 0:00:53.7]} 56. a7 {[%clk 0:00:24.7]} 56... f2
{[%clk 0:00:54]} 0-1